fUST/lending_fUST_20260107
["ID","MTS","AMOUNT","RATE_DAILY","PERIOD"]
[400717646,1767791441207,-450.0,0.00023014,2]
[400717647,1767791441216,-187.0,0.00023096,9]
[400717648,1767791441226,-500.0,0.00023128,2]
[400717649,1767791441236,-500.0,0.00023128,2]
[400717650,1767791441247,-500.0,0.00023143,2]
[400717651,1767791441256,-2982.60894464,0.00023157,2]
[400717652,1767791441266,-617.40005154,0.00023157,2]
[400717653,1767791441275,-34692.55458483,0.00023157,2]
[400717654,1767791441285,-225.672265,0.00023157,2]
[400717655,1767791441294,-225.672265,0.00023157,2]
[400717656,1767791441304,-225.672265,0.00023157,2]
[400717657,1767791441313,-225.672265,0.00023157,2]
[400717658,1767791441323,-746.00194104,0.0002316,2]
[400717659,1767791441332,-2984.00776415,0.0002316,2]
[400717660,1767791441342,-6614.42648075,0.00023166,2]
[400717661,1767791441351,-2443.72890959,0.0002317,2]
[400717662,1767791441360,-864.0,0.00023173,10]
[400717663,1767791441370,-500.0,0.00023265,2]
[400717664,1767791441381,-364.24644296,0.00023265,2]
[400717665,1767791441390,-356.58124134,0.00023273,2]
[400717666,1767791441399,-1800.0,0.00023307,2]
[400717667,1767791441410,-1648.89650756,0.00023363,2]
[400717668,1767791441419,-500.0,0.00023402,2]
[400717669,1767791441429,-2443.72890959,0.00023474,2]
[400717670,1767791441438,-500.0,0.00023539,2]
[400717671,1767791441448,-600.0,0.00023562,2]
[400717672,1767791441458,-1646.0,0.000236,7]
[400717673,1767791441467,-500.0,0.00023652,2]
[400717674,1767791441476,-500.0,0.00023676,2]
[400717675,1767791441486,-282.0,0.00023692,2]
[400717676,1767791441497,-3092.96547559,0.00023705,2]
[400717677,1767791441506,-640.24385345,0.00023705,2]
[400717678,1767791441516,-181.80617065,0.00023745,9]
[400717679,1767791441526,-2443.72890959,0.00023791,2]
[400717680,1767791441536,-500.0,0.00023813,2]
[400717681,1767791441545,-500.0,0.00023829,2]
[400717682,1767791441555,-500.0,0.00023896,2]
[400717683,1767791441564,-1800.0,0.00023918,2]
[400717684,1767791441574,-2443.72890964,0.00023946,2]
[400717685,1767791441583,-500.0,0.0002395,2]
[400717686,1767791441592,-7197.7705983,0.00023978,2]
[400717687,1767791441601,-500.0,0.00023988,2]
[400717688,1767791441611,-2007.0,0.00024,30]
[400717689,1767791441620,-24257.204662,0.00024019,2]
[400717690,1767791441630,-3662.6327141,0.00024019,2]
[400717691,1767791441640,-24257.204662,0.00024019,2]
[400717692,1767791441649,-500.0,0.00024061,2]
[400717693,1767791441659,-500.0,0.00024087,2]
[400717694,1767791441668,-750.0,0.0002411,2]
[400717695,1767791441678,-103755.64068036,0.00024142,2]
[400717696,1767791441687,-151.0,0.00024142,2]
[400717697,1767791441697,-151.0,0.00024142,2]
[400717698,1767791441707,-247.352857,0.00024142,2]
[400717699,1767791441719,-151.0,0.00024142,2]
[400717700,1767791441728,-247.352857,0.00024142,2]
[400717701,1767791441738,-247.352857,0.00024142,2]
[400717702,1767791441748,-247.352857,0.00024142,2]
[400717703,1767791441758,-634.815792,0.00024142,2]
[400717704,1767791441770,-634.815792,0.00024142,2]
[400717705,1767791441780,-634.815792,0.00024142,2]
[400717706,1767791441790,-634.815792,0.00024142,2]
[400717707,1767791441800,-50247.50322628,0.000242,2]
[400717708,1767791441809,-380.93,0.000242,2]
[400717709,1767791441819,-23367.19,0.000242,2]
[400717710,1767791441829,-1694.94,0.000242,14]
[400717711,1767791441839,-225.672265,0.000242,2]
[400717712,1767791442065,-225.672265,0.000242,2]
[400717713,1767791442075,-225.672265,0.000242,2]
[400717714,1767791442084,-225.672265,0.000242,2]
[400717715,1767791442095,-302.47712024,0.00024224,2]
[400717716,1767791442104,-3207.40519818,0.00024253,2]
[400717717,1767791442113,-663.93287602,0.00024253,2]
[400717718,1767791442122,-251.56945719,0.00024269,40]
[400717719,1767791442131,-168.44,0.000243,7]
[400717720,1767791442141,-167.05,0.000243,7]
[400717721,1767791442151,-264.30725743,0.0002441,48]
[400717722,1767791442161,-251.56945719,0.0002441,48]
[400717723,1767791442170,-251.56945719,0.00024552,56]
[400717724,1767791442181,-25070.55772426,0.000246,3]
[400717725,1767791442190,-1041.66666667,0.000246,3]
[400717726,1767791442200,-181.80617065,0.00024618,10]
[400717727,1767791442209,-513.79712507,0.0002465,2]
[400717728,1767791442219,-156724.58563049,0.0002465,2]
[400717729,1767791442228,-151.0,0.0002465,2]
[400717730,1767791442238,-151.0,0.0002465,2]
[400717731,1767791442247,-247.352857,0.0002465,2]
[400717732,1767791442257,-151.0,0.0002465,2]
[400717733,1767791442266,-247.352857,0.0002465,2]
[400717734,1767791442275,-247.352857,0.0002465,2]
[400717735,1767791442285,-247.352857,0.0002465,2]
[400717736,1767791442296,-634.815792,0.0002465,2]
[400717737,1767791442305,-634.815792,0.0002465,2]
[400717738,1767791442315,-634.815792,0.0002465,2]
[400717739,1767791442327,-634.815792,0.0002465,2]
[400717740,1767791442336,-300.0,0.00024658,7]
[400717741,1767791442345,-900.0,0.00024658,2]
[400717742,1767791442355,-150.0,0.00024658,2]
[400717743,1767791442365,-380.0,0.00024658,2]
[400717744,1767791442375,-200.0,0.00024658,2]
[400717745,1767791442384,-500.0,0.00024658,2]
[400717746,1767791442394,-264.30725743,0.00024694,63]
[400717747,1767791442403,-251.56945719,0.00024694,63]
[400717748,1767791442413,-150.0,0.000247,2]
[400717749,1767791442422,-16821.80898001,0.00024774,2]
[400717750,1767791442432,-500.0,0.00024795,2]
[400717752,1767791442442,-151.0,0.000248,5]
[400717753,1767791442451,-1646.0,0.000248,7]
[400717754,1767791442460,-225.672265,0.000248,7]
[400717755,1767791442470,-225.672265,0.000248,7]
[400717756,1767791442479,-225.672265,0.000248,7]
[400717757,1767791442489,-225.672265,0.000248,7]
[400717758,1767791442499,-1648.89650756,0.000248,2]
[400717759,1767791442507,-151.0,0.000248,7]
[400717760,1767791442517,-247.352857,0.000248,7]
[400717761,1767791442527,-235.000047,0.000248,7]
[400717762,1767791442536,-247.352857,0.000248,7]
[400717763,1767791442546,-247.352857,0.000248,7]
[400717764,1767791442556,-247.352857,0.000248,7]
[400717765,1767791442565,-20779.1008256,0.000248,2]
[400717766,1767791442575,-634.815792,0.000248,7]
[400717767,1767791442584,-634.815792,0.000248,7]
[400717768,1767791442594,-634.815792,0.000248,7]
[400717769,1767791442603,-634.815792,0.000248,7]
[400717770,1767791442612,-688.49839244,0.00024801,2]
[400717771,1767791442621,-176.06015534,0.00024813,56]
[400717772,1767791442632,-251.56945719,0.00024835,71]
[400717773,1767791442641,-151.0,0.000249,7]
[400717774,1767791442650,-225.672265,0.000249,7]
[400717775,1767791442660,-225.672265,0.000249,7]
[400717776,1767791442669,-225.672265,0.000249,7]
[400717777,1767791442678,-225.672265,0.000249,7]
[400717778,1767791442688,-151.0,0.000249,7]
[400717779,1767791442697,-247.352857,0.000249,7]
[400717780,1767791442706,-247.352857,0.000249,7]
[400717781,1767791442715,-247.352857,0.000249,7]
[400717782,1767791442724,-247.352851,0.000249,7]
[400717783,1767791442732,-330638.5139589,0.000249,2]
[400717784,1767791442750,-15869.43451462,0.000249,2]
[400717801,1767791444380,-300.0,0.00015299,2]
[400717802,1767791444390,-300.0,0.00015299,2]
[400717803,1767791444400,-300.0,0.00015299,2]
[400717804,1767791444410,-300.0,0.00015299,2]
[400717805,1767791444420,-300.0,0.00015299,2]
[400717806,1767791444431,-300.0,0.00015299,2]
[400717807,1767791444440,-300.0,0.00015299,2]
[400717808,1767791444450,-1216.50642212,0.00023705,2]
[400717819,1767791445359,-300.0,0.00023705,2]
[400717826,1767791445416,-6516.99428067,0.00023705,2]
[400717828,1767791445426,-11409.05014004,0.0002489,10]
[400717830,1767791445438,-4082.51093878,0.0002489,10]
[400717880,1767791445918,-4689.27203357,0.0002489,10]
[400717884,1767791446244,-1969.94688761,0.0002489,10]
[400717886,1767791446254,-3938.42946131,0.000249,2]
[400717898,1767791686564,155.0,7e-05,2]
[400717899,1767791691082,2379.67268843,0.0003,120]
[400717906,1767791767185,2443.22944356,0.0003,120]
[400717907,1767791838496,160.0,0.00030137,120]
[400717908,1767791886946,160.0,0.00030137,120]
[400717910,1767791938790,160.79,0.00030137,120]
[400717912,1767792093625,599.0,0.00030137,120]
[400717934,1767792401219,-608.0,0.00013272,2]
[400717935,1767792401250,-300.0,0.00013272,2]
[400717936,1767792401283,-429.0,0.00013272,2]
[400717937,1767792401314,-300.0,0.00013272,2]
[400717938,1767792401345,-176.3656962,0.00013272,2]
[400717939,1767792401374,-500.0,0.00013273,2]
[400717940,1767792401403,-500.0,0.00013273,2]
[400717941,1767792401434,-349.23111606,0.00013273,2]
[400717942,1767792401464,-500.0,0.00013273,2]
[400717943,1767792401494,-561.44282102,0.00013273,2]
[400717944,1767792401523,-502.20988126,0.00013273,2]
[400717945,1767792401553,-46.20247082,0.00013273,2]
[400717946,1767792401947,-455.10602928,0.00013273,2]
[400717947,1767792401975,-500.0,0.00013273,2]
[400717948,1767792402004,-500.0,0.00013273,2]
[400717949,1767792402033,-500.0,0.00013699,2]
[400717950,1767792402065,-1000.0,0.00013821,2]
[400717951,1767792402094,-506.91111939,0.00014247,2]
[400717952,1767792402125,-627.52709265,0.00014368,2]
[400717953,1767792402154,-300.0,0.00014551,2]
[400717954,1767792402184,-220.92151736,0.0001509,2]
[400717955,1767792404982,-779.07848264,0.0001509,2]
[400717956,1767792405012,-1177.783702,0.00015167,2]
[400717957,1767792405041,-208.11152152,0.00015272,2]
[400717958,1767792405071,-239.85734684,0.00017272,2]
[400717959,1767792405440,-2200.40797816,0.00019239,2]
[400717960,1767792405500,-10000.01,0.00019239,2]
[400717961,1767792413170,-477.15043169,0.00019139,2]
[400717962,1767792413212,-9045.70913662,0.00019239,2]
[400717964,1767792467920,428.08,8.381e-05,2]
[400717965,1767792468312,856.17,8.78e-05,2]
[400717966,1767792468798,1284.25,9.179e-05,2]
[400717967,1767792469254,1712.33,9.578e-05,2]
[400717968,1767792469677,2140.42,9.977e-05,2]
[400717970,1767792470151,2568.5,0.00010377,2]
[400717971,1767792470590,1010.26,0.00010776,2]
[400717972,1767792470617,1986.32,0.00010776,2]
[400717973,1767792471053,3424.66,0.00011175,2]
[400717974,1767792471527,3852.75,0.00011574,2]
[400717975,1767792471954,736.28,0.00011973,2]
[400717976,1767792471980,3544.55,0.00011973,2]
[400717983,1767792547463,229.73,9.382e-05,2]
[400717984,1767792547931,459.46,9.828e-05,2]
[400717985,1767792548355,689.19,0.00010275,2]
[400717986,1767792548865,918.92,0.00010722,2]
[400717987,1767792549582,1148.65,0.00011169,2]
[400717988,1767792549856,1378.38,0.00011615,2]
[400717989,1767792550321,1608.11,0.00012062,2]
[400717991,1767792629852,23.02,9.051e-05,2]
[400717992,1767792629877,181.63,9.051e-05,2]
[400717993,1767792630370,409.3,9.482e-05,2]
[400717994,1767792630800,613.96,9.913e-05,2]
[400717995,1767792631513,818.61,0.00010344,2]
[400718007,1767792631703,1023.26,0.00010775,2]
[400718029,1767792632241,1227.91,0.00011206,2]
[400718031,1767792632685,1432.56,0.00011637,2]
[400718032,1767792633068,1637.21,0.00012069,2]
[400718037,1767792638197,-1841.87,0.000125,2]
[400718038,1767792638206,-2046.52,0.00012931,2]
[400718039,1767792638216,-5000.0,0.00013009,2]
[400718040,1767792638225,-5000.0,0.0001314,2]
[400718041,1767792638235,-372.41289398,0.00013273,2]
[400718042,1767792638244,-53819.04156786,0.00016778,2]
[400718043,1767792638254,-27429.36672841,0.00018,2]
[400718044,1767792638264,-303.00000303,0.000189,2]
[400718045,1767792638273,-2603.49,0.00019,2]
[400718046,1767792638283,-17949.00191859,0.00019,2]
[400718047,1767792638292,-7200.62506532,0.00019,2]
[400718048,1767792638302,-303.84950739,0.00019089,2]
[400718049,1767792638311,-5036.80745558,0.00019104,2]
[400718050,1767792638320,-497.81118302,0.00019205,5]
[400718051,1767792638330,-464.283288,0.00019239,2]
[400718052,1767792638340,-163.87900491,0.00019256,2]
[400718053,1767792638353,-150.0,0.00020265,2]
[400718054,1767792638362,-150.0,0.00020265,2]
[400718055,1767792638371,-150.0,0.00020276,2]
[400718056,1767792638381,-500.0,0.00020276,2]
[400718057,1767792638390,-206.58822789,0.00020276,2]
[400718058,1767792638399,-150.0,0.00020276,2]
[400718059,1767792638410,-500.0,0.00020276,2]
[400718060,1767792638419,-500.0,0.00020276,2]
[400718061,1767792638428,-500.0,0.00020276,2]
[400718062,1767792638437,-150.0,0.00020276,2]
[400718063,1767792638446,-150.0,0.00020276,2]
[400718064,1767792638455,-150.0,0.00020276,2]
[400718065,1767792638464,-150.0,0.00020276,2]
[400718066,1767792638474,-150.0,0.00020276,2]
[400718067,1767792638485,-1041.66666667,0.00020353,2]
[400718068,1767792638494,-150.0,0.00020402,2]
[400718069,1767792638503,-150.0,0.00020402,2]
[400718070,1767792638513,-272.0,0.00020411,3]
[400718071,1767792638522,-261.88445837,0.00020413,2]
[400718072,1767792638532,-500.0,0.00020413,2]
[400718073,1767792638541,-150.0,0.00020413,2]
[400718074,1767792638550,-500.0,0.00020413,2]
[400718075,1767792638559,-500.0,0.00020413,2]
[400718076,1767792638569,-603.89498635,0.00020413,2]
[400718077,1767792638578,-209.63078805,0.00020413,2]
[400718078,1767792638587,-150.0,0.00020413,2]
[400718079,1767792638597,-150.0,0.00020413,2]
[400718080,1767792638607,-150.0,0.00020413,2]
[400718081,1767792638618,-210.83487892,0.00020413,2]
[400718082,1767792638629,-1319.11720608,0.000205,2]
[400718083,1767792638639,-252.99,0.00020529,3]
[400718084,1767792638650,-758.97,0.00020529,3]
[400718085,1767792638660,-150.0,0.00020539,2]
[400718086,1767792638670,-500.0,0.0002055,2]
[400718087,1767792638679,-150.0,0.0002055,2]
[400718088,1767792638689,-500.0,0.0002055,2]
[400718089,1767792638698,-500.0,0.0002055,2]
[400718090,1767792638707,-150.0,0.0002055,2]
[400718091,1767792638718,-150.0,0.0002055,2]
[400718092,1767792638727,-150.0,0.0002055,2]
[400718093,1767792638736,-1000000.0,0.00020551,2]
[400718094,1767792638746,-21030.47,0.000206,2]
[400718095,1767792638756,-167.05,0.000206,2]
[400718096,1767792638765,-1694.94,0.000206,2]
[400718097,1767792638774,-151.59,0.000206,2]
[400718098,1767792638784,-500.0,0.00020687,2]
[400718099,1767792638793,-150.0,0.00020687,2]
[400718100,1767792638802,-500.0,0.00020687,2]
[400718101,1767792638811,-500.0,0.00020687,2]
[400718102,1767792638822,-160.56827625,0.00020687,2]
[400718103,1767792638831,-150.0,0.00020687,2]
[400718104,1767792638841,-177.57781539,0.00020687,2]
[400718105,1767792638850,-282.0,0.00020695,2]
[400718106,1767792638859,-181.25348447,0.00020811,2]
[400718107,1767792638869,-500.0,0.00020824,2]
[400718108,1767792638878,-206.74458148,0.00020824,2]
[400718110,1767792638888,-500.0,0.00020824,2]
[400718112,1767792638897,-500.0,0.00020824,2]
[400718114,1767792638906,-156.27075541,0.00020824,2]
[400718115,1767792638916,-767.2166406,0.00020902,2]
[400718117,1767792638926,-6904.94976543,0.00020902,2]
[400718120,1767792638935,-399.76013179,0.00020902,2]
[400718122,1767792638945,-584.77522295,0.00020902,2]
[400718125,1767792638974,-3013.06596315,0.00020902,2]
[400718127,1767792638984,-500.99703876,0.00020902,2]
[400718265,1767792640304,-888.05068053,0.00020902,2]
[400718266,1767792640315,-1131.63761844,0.00020902,2]
[400718267,1767792640367,-900.0,0.00020902,2]
[400718573,1767792646063,-1411.95357189,0.00020902,2]
[400718574,1767792646123,-1437.1938843,0.00020902,2]
[400718575,1767792646787,-126.32931471,0.00020902,2]
[400718576,1767792646798,-146.50251446,0.00020902,2]
[400718587,1767792708858,150.0,8.024e-05,2]
[400718588,1767792709410,199.24,8.406e-05,2]
[400718589,1767792709828,298.86,8.788e-05,2]
[400718590,1767792710248,398.48,9.17e-05,2]
[400718591,1767792711195,498.1,9.552e-05,2]
[400718592,1767792711681,597.72,9.934e-05,2]
[400718593,1767792712096,697.34,0.00010317,2]
[400718594,1767792712538,796.96,0.00010699,2]
[400718595,1767792712935,896.58,0.00011081,2]
[400718596,1767792713377,996.2,0.00011463,2]
[400718599,1767792787587,150.0,8.02e-05,2]
[400718600,1767792788048,150.0,8.402e-05,2]
[400718601,1767792788519,150.0,8.784e-05,2]
[400718602,1767792788933,150.0,9.165e-05,2]
[400718603,1767792789344,150.0,9.547e-05,2]
[400718604,1767792789868,175.47,9.929e-05,2]
[400718605,1767792790302,204.72,0.00010311,2]
[400718606,1767792790772,233.96,0.00010693,2]
[400718607,1767792791212,263.21,0.00011075,2]
[400718608,1767792791690,292.45,0.00011457,2]
[400718649,1767792858272,150.0,8.395e-05,2]
[400718650,1767792858738,150.0,8.795e-05,2]
[400718682,1767793409418,-3433.54326316,0.00012879,2]
[400718683,1767793409450,-160.60142482,0.00012944,2]
[400718684,1767793416762,-5000.0,0.00012879,2]
[400718685,1767793416943,-5000.0,0.00013009,2]
[400718686,1767793490626,269.07,0.0003013,120]
[400718687,1767793590123,-5000.0,0.00012878,2]
[400718688,1767793590144,-5000.0,0.00013008,2]
[400718689,1767793590167,-103.21129066,0.00013272,2]
[400718696,1767793737956,176.23503177,0.00025185,120]
[400718708,1767793832177,-678.08346952,0.00013008,2]
[400718709,1767793832188,-516.30841662,0.00013008,2]
[400718710,1767793832200,-3805.60811386,0.00013008,2]
[400718711,1767793832209,-157.38939632,0.00013206,2]
[400718712,1767793832222,-150.76888394,0.00013273,2]
[400718713,1767793832231,-575.0,0.00013699,2]
[400718714,1767793832241,-185.71948766,0.00015206,2]
[400718715,1767793832250,-300.0,0.00016438,2]
[400718716,1767793832259,-197.0,0.00017024,2]
[400718718,1767793832268,-9847.50078027,0.00017025,2]
[400718720,1767793832277,-214.04957899,0.00017206,2]
[400718722,1767793832287,-573.3935131,0.00017921,2]
[400718724,1767793832296,-1559.09767582,0.00017921,2]
[400718726,1767793832308,-734.47637659,0.00017921,2]
[400718728,1767793832317,-841.76005593,0.00017921,2]
[400718749,1767793838228,-2084.87083648,0.00017921,2]
[400718751,1767793838241,-2233.91072552,0.00017921,2]
[400718753,1767793838253,-560.51859662,0.00017921,2]
[400718756,1767793838264,-35.49858389,0.00017921,2]
[400718759,1767793838285,-750.0,0.00017921,2]
[400718986,1767793840441,-1454.33372819,0.00017921,2]
[400718988,1767793840452,-402.866,0.00018165,2]
[400718990,1767793840463,-157.01821301,0.0001844,2]
[400718993,1767793840474,-1300.0,0.000185,2]
[400718995,1767793840484,-507.43789087,0.00018681,2]
[400718997,1767793840495,-2029.75156348,0.00018681,2]
[400719000,1767793840505,-4562.3740768,0.00018681,2]
[400719002,1767793840516,-2220.4026827,0.00018756,2]
[400719004,1767793840527,-2220.4026827,0.00019122,2]
[400719006,1767793840537,-242.37967033,0.00019206,2]
[400719008,1767793840547,-2220.4026827,0.00019344,2]
[400719011,1767793840558,-1300.0,0.000195,3]
[400719012,1767793840569,-2220.4026827,0.00019649,2]
[400719014,1767793840580,-2220.4026827,0.00019838,2]
[400719016,1767793840591,-189.0,0.00019863,3]
[400719019,1767793840602,-2220.4026827,0.00020202,2]
[400719021,1767793840612,-500.0,0.00020276,2]
[400719023,1767793840623,-150.0,0.00020276,2]
[400719025,1767793840634,-500.0,0.00020276,2]
[400719027,1767793840645,-500.0,0.00020276,2]
[400719029,1767793840655,-160.56827625,0.00020276,2]
[400719031,1767793840666,-177.57781539,0.00020276,2]
[400719034,1767793840677,-150.0,0.00020276,2]
[400719036,1767793840687,-150.0,0.00020276,2]
[400719038,1767793840697,-150.0,0.00020276,2]
[400719040,1767793840708,-259.14783661,0.00020276,2]
[400719042,1767793840718,-150.0,0.00020276,2]
[400719044,1767793840729,-2220.4026827,0.00020281,2]
[400719046,1767793840741,-500.0,0.00020382,2]
[400719048,1767793840755,-500.0,0.00020382,2]
[400719050,1767793840766,-500.0,0.00020382,2]
[400719053,1767793840776,-500.0,0.00020382,2]
[400719055,1767793840788,-288.61798435,0.00020382,2]
[400719057,1767793840799,-500.0,0.00020382,2]
[400719059,1767793840810,-500.0,0.00020382,2]
[400719061,1767793840820,-500.0,0.00020382,2]
[400719063,1767793840832,-500.0,0.00020382,2]
[400719065,1767793840842,-500.0,0.00020382,2]
[400719066,1767793840853,-500.0,0.00020382,2]
[400719067,1767793840863,-500.0,0.00020382,2]
[400719068,1767793840874,-500.0,0.00020382,2]
[400719069,1767793840885,-500.0,0.00020382,2]
[400719070,1767793840896,-500.0,0.00020382,2]
[400719071,1767793840907,-500.0,0.00020382,2]
[400719072,1767793840917,-500.0,0.00020382,2]
[400719073,1767793840929,-500.0,0.00020382,2]
[400719074,1767793840940,-500.0,0.00020382,2]
[400719075,1767793840950,-571.4874157,0.00020382,2]
[400719076,1767793840962,-500.0,0.00020382,2]
[400719077,1767793840972,-500.0,0.00020382,2]
[400719078,1767793840984,-500.0,0.00020382,2]
[400719079,1767793840996,-500.0,0.00020382,2]
[400719080,1767793841008,-500.0,0.00020382,2]
[400719081,1767793841018,-500.0,0.00020382,2]
[400719082,1767793841029,-500.0,0.00020382,2]
[400719083,1767793841040,-500.0,0.00020382,2]
[400719084,1767793841051,-500.0,0.00020382,2]
[400719085,1767793841062,-500.0,0.00020382,2]
[400719086,1767793841073,-648.3122011,0.00020382,2]
[400719087,1767793841085,-1041.66666667,0.00020385,2]
[400719088,1767793841096,-500.0,0.00020413,2]
[400719089,1767793841106,-206.74458148,0.00020413,2]
[400719091,1767793841117,-500.0,0.00020413,2]
[400719093,1767793841127,-500.0,0.00020413,2]
[400719095,1767793841138,-156.27075541,0.00020413,2]
[400719097,1767793841148,-150.0,0.00020413,2]
[400719099,1767793841158,-150.0,0.00020413,2]
[400719101,1767793841168,-10897.8968947,0.00020461,2]
[400719411,1767793844547,-11086.09085338,0.00020461,2]
[400719412,1767793845288,-4348.45571738,0.00020461,2]
[400719413,1767793845299,-787.38445668,0.00020461,2]
[400719416,1767793846202,-652.0,0.00020461,2]
[400719452,1767794062860,-670.9090546,0.0001584,2]
[400719453,1767794062891,-3000.0,0.00016,2]
[400719454,1767794062920,-153.63863365,0.00016005,2]
[400719455,1767794063265,-3000.0,0.0001601,2]
[400719456,1767794063295,-1000.01,0.0001602,2]
[400719457,1767794063524,-1999.99,0.0001602,2]
[400719458,1767794063554,-1624.043877,0.0001603,2]
[400719460,1767794109557,680.57509874,0.0003013,120]
[400719506,1767794289240,160.11753812,0.0003,120]
[400719510,1767794346154,456.0,0.00030137,120]
[400719511,1767794352712,10000.01,0.00012,2]
[400719512,1767794352735,10000.01,0.00012,2]
[400719513,1767794352758,10000.01,0.00012,2]
[400719521,1767794423958,150.0,8.229e-05,2]
[400719522,1767794424587,150.0,8.621e-05,2]
[400719523,1767794424839,150.0,9.013e-05,2]
[400719528,1767794483547,-4858.36885989,0.00012,2]
[400719529,1767794483687,-10000.01,0.00012,2]
[400719543,1767794502518,-5000.0,0.00011761,2]
[400719544,1767794502557,-0.01,0.0001188,2]
[400719545,1767794527463,-5000.0,0.00011761,2]
[400719546,1767794527508,-0.01,0.0001188,2]
[400719548,1767794552924,-5000.0,0.00011761,2]
[400719549,1767794552961,-0.01,0.0001188,2]
[400719550,1767794555386,150.0,8.121e-05,2]
[400719551,1767794555824,150.0,8.508e-05,2]
[400719552,1767794556286,150.0,8.895e-05,2]
[400719553,1767794558579,275.4165107,0.00030137,120]
[400719554,1767794564344,-150.0,9.282e-05,2]
[400719555,1767794564372,-150.0,9.668e-05,2]
[400719556,1767794564397,-57.06665228,0.00010055,2]
[400719557,1767794564900,5000.0,9.275e-05,2]
[400719559,1767794573481,-92.93334772,0.00010055,2]
[400719560,1767794573709,-150.0,0.00010442,2]
[400719561,1767794573743,-165.47,0.00010829,2]
[400719562,1767794573774,-186.15,0.00011215,2]
[400719563,1767794573805,-206.84,0.00011602,2]
[400719564,1767794573837,-3397.25330456,0.0001188,2]
[400719565,1767794573954,-1602.71669544,0.0001188,2]
[400719567,1767794591253,-5000.0,0.0001188,2]
[400719568,1767794591292,-0.01,0.00012,2]
[400719569,1767794609202,-5000.0,0.0001188,2]
[400719570,1767794609245,-0.01,0.00012,2]
[400719571,1767794626215,150.0,8.49e-05,2]
[400719572,1767794626630,150.0,8.894e-05,2]
[400719573,1767794634837,5000.0,9.275e-05,2]
[400719574,1767794635815,-150.0,9.298e-05,2]
[400719575,1767794635846,-150.0,9.703e-05,2]
[400719576,1767794635877,-150.0,0.00010107,2]
[400719577,1767794635909,-150.0,0.00010511,2]
[400719578,1767794635943,-3800.01,0.0001188,2]
[400719579,1767794636032,-1199.99,0.0001188,2]
[400719581,1767794657585,-5000.0,0.0001188,2]
[400719582,1767794657627,-0.01,0.00012,2]
[400719583,1767794682641,-5000.0,0.00011761,2]
[400719584,1767794682680,-0.01,0.00011881,2]
[400719587,1767794706338,-5000.0,0.00011644,2]
[400719588,1767794706376,-0.01,0.00011762,2]
[400719589,1767794725764,-4999.99,0.00011762,2]
[400719590,1767794725808,-0.03,0.00011881,2]
[400719591,1767794743901,-5000.0,0.00011762,2]
[400719592,1767794743938,-0.01,0.00011881,2]
[400719594,1767794760997,-5000.0,0.00011528,2]
[400719595,1767794761035,-0.01,0.00011644,2]
[400719596,1767794761237,-1762.17889453,0.00011644,2]
[400719597,1767794761269,-150.51586098,0.00011881,2]
[400719598,1767794761325,-6174.62048898,0.00012,2]
[400719599,1767794761403,-10000.01,0.00012,2]
[400719601,1767794782645,-5000.0,0.0001188,2]
[400719602,1767794782698,-0.01,0.00012,2]
[400719603,1767794803142,-3025.92324776,0.0001188,2]
[400719604,1767794806421,-5000.0,0.00011761,2]